[Event "Early-Titled-Tuesday-Blitz-April-02-2024"]
[Site "Chess.com"]
[Date "2024.04.02"]
[Round "2"]
[White "JimDiGrease"]
[Black "Aslanov_Umid"]
[Result "0-1"]
[WhiteElo "2954"]
[BlackElo "2644"]
[TimeControl "180+1"]
[EndTime "8:17:42 PDT"]
[Termination "Aslanov_Umid won on time"]

1. d4 {[%clk 0:03:00.9]} 1... d5 {[%clk 0:02:59.2]} 2. c4 {[%clk 0:03:00.8]}
2... e6 {[%clk 0:02:59.6]} 3. Nf3 {[%clk 0:03:01.2]} 3... Nf6 {[%clk 0:02:59.7]}
4. Qc2 {[%clk 0:03:02]} 4... Be7 {[%clk 0:02:56.4]} 5. cxd5 {[%clk 0:03:02.2]}
5... exd5 {[%clk 0:02:57.3]} 6. Bf4 {[%clk 0:03:02.5]} 6... c6 {[%clk
0:02:57.1]} 7. e3 {[%clk 0:03:03.1]} 7... O-O {[%clk 0:02:56.2]} 8. Nc3 {[%clk
0:03:03.1]} 8... Bg4 {[%clk 0:02:55.2]} 9. Bd3 {[%clk 0:02:56.9]} 9... Bh5
{[%clk 0:02:54.8]} 10. Nh4 {[%clk 0:02:51.8]} 10... Bg6 {[%clk 0:02:25.7]} 11.
Nf5 {[%clk 0:02:51.1]} 11... Re8 {[%clk 0:02:19.7]} 12. O-O {[%clk 0:02:36.2]}
12... Nbd7 {[%clk 0:02:08.6]} 13. Rab1 {[%clk 0:02:31.7]} 13... a5 {[%clk
0:01:59.9]} 14. a3 {[%clk 0:02:29]} 14... Nf8 {[%clk 0:01:58.2]} 15. Rfc1 {[%clk
0:02:06.7]} 15... Ne6 {[%clk 0:01:57.7]} 16. Be5 {[%clk 0:02:05.8]} 16... Nd7
{[%clk 0:01:52.6]} 17. Bg3 {[%clk 0:01:59.4]} 17... Bf8 {[%clk 0:01:29.4]} 18.
b4 {[%clk 0:01:34.9]} 18... axb4 {[%clk 0:01:27.6]} 19. axb4 {[%clk 0:01:35.8]}
19... b5 {[%clk 0:01:15.2]} 20. Ne2 {[%clk 0:01:14.9]} 20... Rc8 {[%clk
0:01:14.2]} 21. e4 {[%clk 0:00:40.9]} 21... Nb6 {[%clk 0:00:59.3]} 22. e5 {[%clk
0:00:33.4]} 22... Nc4 {[%clk 0:00:55.1]} 23. Rb3 {[%clk 0:00:32.8]} 23... Ra8
{[%clk 0:00:49.4]} 24. Nh4 {[%clk 0:00:30.7]} 24... Qb6 {[%clk 0:00:46.5]} 25.
Rd1 {[%clk 0:00:22]} 25... Ra4 {[%clk 0:00:41.4]} 26. f4 {[%clk 0:00:20.6]}
26... Ne3 {[%clk 0:00:26.7]} 27. Qd2 {[%clk 0:00:11.8]} 27... Nxd1 {[%clk
0:00:26.9]} 28. Qxd1 {[%clk 0:00:04.8]} 28... Nxd4 {[%clk 0:00:27.1]} 29. Bf2
{[%clk 0:00:04.7]} 29... Bxd3 {[%clk 0:00:25.5]} 30. Nxd4 {[%clk 0:00:03.7]}
30... Bc4 {[%clk 0:00:20.4]} 31. Rb1 {[%clk 0:00:04.2]} 31... c5 {[%clk
0:00:19.6]} 32. bxc5 {[%clk 0:00:04]} 32... Bxc5 {[%clk 0:00:20.5]} 33. Nhf5
{[%clk 0:00:04.6]} 33... g6 {[%clk 0:00:19.5]} 34. Qg4 {[%clk 0:00:02.3]} 34...
Bd3 {[%clk 0:00:17.3]} 35. Nh6+ {[%clk 0:00:02.1]} 35... Kg7 {[%clk 0:00:16.6]}
36. Rd1 {[%clk 0:00:02.7]} 36... Bxd4 {[%clk 0:00:16.4]} 0-1

[Event "Early-Titled-Tuesday-Blitz-April-02-2024"]
[Site "Chess.com"]
[Date "2024.04.02"]
[Round "2"]
[White "KNVB"]
[Black "Barmen_EV"]
[Result "1-0"]
[WhiteElo "2810"]
[BlackElo "2576"]
[TimeControl "180+1"]
[EndTime "8:17:42 PDT"]
[Termination "KNVB won by resignation"]

1. e4 {[%clk 0:03:00.9]} 1... e6 {[%clk 0:02:59.9]} 2. c3 {[%clk 0:03:00.7]}
2... d5 {[%clk 0:02:59]} 3. Nf3 {[%clk 0:03:01.6]} 3... dxe4 {[%clk 0:02:58.1]}
4. Qa4+ {[%clk 0:03:01.7]} 4... Nc6 {[%clk 0:02:56.6]} 5. Qxe4 {[%clk
0:02:54.1]} 5... Nf6 {[%clk 0:02:56.6]} 6. Qc2 {[%clk 0:02:44.5]} 6... e5 {[%clk
0:02:56.3]} 7. d3 {[%clk 0:02:44]} 7... Be7 {[%clk 0:02:54.5]} 8. Nbd2 {[%clk
0:02:41.5]} 8... O-O {[%clk 0:02:55.1]} 9. Be2 {[%clk 0:02:40.3]} 9... h6 {[%clk
0:02:51.3]} 10. O-O {[%clk 0:02:40.7]} 10... Bf5 {[%clk 0:02:51.6]} 11. Re1
{[%clk 0:02:39.1]} 11... Re8 {[%clk 0:02:49]} 12. Bf1 {[%clk 0:02:34.3]} 12...
Bf8 {[%clk 0:02:45.4]} 13. Ne4 {[%clk 0:02:32.1]} 13... Nh5 {[%clk 0:02:18.9]}
14. g3 {[%clk 0:02:01.5]} 14... Nf6 {[%clk 0:02:19.2]} 15. Be3 {[%clk
0:01:49.1]} 15... Nxe4 {[%clk 0:02:12.6]} 16. dxe4 {[%clk 0:01:50]} 16... Bh7
{[%clk 0:02:09.1]} 17. a4 {[%clk 0:01:36.8]} 17... Qf6 {[%clk 0:02:04.1]} 18.
Nd2 {[%clk 0:01:35.7]} 18... Ne7 {[%clk 0:02:01.1]} 19. a5 {[%clk 0:01:05.8]}
19... Nd5 {[%clk 0:02:00]} 20. a6 {[%clk 0:00:55.4]} 20... Nxe3 {[%clk
0:01:53.2]} 21. Rxe3 {[%clk 0:00:54.8]} 21... b6 {[%clk 0:01:53.6]} 22. b4
{[%clk 0:00:45.2]} 22... h5 {[%clk 0:01:48.5]} 23. h4 {[%clk 0:00:41.1]} 23...
g6 {[%clk 0:01:48.8]} 24. Bc4 {[%clk 0:00:38.5]} 24... Bh6 {[%clk 0:01:47]} 25.
Rf3 {[%clk 0:00:39]} 25... Qg7 {[%clk 0:01:21.9]} 26. Rxf7 {[%clk 0:00:34.7]}
26... Qxf7 {[%clk 0:01:21.7]} 27. Bxf7+ {[%clk 0:00:35.6]} 27... Kxf7 {[%clk
0:01:22.5]} 28. Nf3 {[%clk 0:00:36.1]} 28... Rad8 {[%clk 0:01:16.4]} 29. Rd1
{[%clk 0:00:34.6]} 29... Kf6 {[%clk 0:01:12.5]} 30. Rd3 {[%clk 0:00:18.2]} 30...
Bg8 {[%clk 0:01:12.2]} 31. Qd1 {[%clk 0:00:18.3]} 31... Rxd3 {[%clk 0:01:04.9]}
32. Qxd3 {[%clk 0:00:19.2]} 32... Be6 {[%clk 0:01:05.7]} 33. Nxe5 {[%clk
0:00:15.2]} 33... Bf8 {[%clk 0:00:53.8]} 34. Nd7+ {[%clk 0:00:14]} 34... Bxd7
{[%clk 0:00:54.3]} 35. Qxd7 {[%clk 0:00:14.2]} 35... Rxe4 {[%clk 0:00:55.2]} 36.
Qc6+ {[%clk 0:00:08.1]} 36... Re6 {[%clk 0:00:55.7]} 37. Qxc7 {[%clk 0:00:08.7]}
37... Bd6 {[%clk 0:00:56.5]} 38. Qxa7 {[%clk 0:00:08.2]} 38... Re1+ {[%clk
0:00:57.2]} 39. Kg2 {[%clk 0:00:08.1]} 39... Re2 {[%clk 0:00:58]} 40. Qxb6
{[%clk 0:00:07.5]} 40... Ke7 {[%clk 0:00:58.7]} 41. a7 {[%clk 0:00:07.5]} 41...
Ra2 {[%clk 0:00:56.9]} 42. Qb7+ {[%clk 0:00:07.8]} 42... Ke6 {[%clk 0:00:57.3]}
43. a8=Q {[%clk 0:00:08.7]} 43... Rxa8 {[%clk 0:00:56.9]} 44. Qxa8 {[%clk
0:00:09.6]} 44... Kf5 {[%clk 0:00:57.8]} 45. Qf3+ {[%clk 0:00:08.6]} 45... Ke6
{[%clk 0:00:58.3]} 46. Qe4+ {[%clk 0:00:08.1]} 46... Kf6 {[%clk 0:00:58.8]} 47.
Qd5 {[%clk 0:00:07.8]} 47... g5 {[%clk 0:00:59.7]} 48. Qxg5+ {[%clk 0:00:05.6]}
48... Ke6 {[%clk 0:00:59.8]} 49. Qxh5 {[%clk 0:00:06.1]} 49... Kd7 {[%clk
0:01:00.4]} 50. Qd5 {[%clk 0:00:06.3]} 50... Kc7 {[%clk 0:01:00.6]} 51. b5
{[%clk 0:00:06.3]} 51... Kb6 {[%clk 0:00:59.3]} 52. Qc6+ {[%clk 0:00:06.7]}
52... Ka7 {[%clk 0:00:58.8]} 53. c4 {[%clk 0:00:06.5]} 53... Kb8 {[%clk
0:00:59.7]} 54. Qxd6+ {[%clk 0:00:06.3]} 54... Kb7 {[%clk 0:01:00]} 55. c5
{[%clk 0:00:06.3]} 55... Kc8 {[%clk 0:01:00.9]} 56. Qe7 {[%clk 0:00:06.6]} 56...
Kb8 {[%clk 0:01:01.1]} 57. f4 {[%clk 0:00:07.3]} 57... Kc8 {[%clk 0:01:01.4]}
58. g4 {[%clk 0:00:08.2]} 58... Kb8 {[%clk 0:01:02.3]} 59. h5 {[%clk 0:00:09.1]}
59... Kc8 {[%clk 0:01:03.2]} 60. h6 {[%clk 0:00:10]} 60... Kb8 {[%clk
0:01:04.1]} 61. Kf3 {[%clk 0:00:10.9]} 61... Kc8 {[%clk 0:01:05]} 62. Ke4 {[%clk
0:00:11.8]} 62... Kb8 {[%clk 0:01:05.9]} 63. Ke5 {[%clk 0:00:12.7]} 63... Kc8
{[%clk 0:01:06.8]} 64. Ke6 {[%clk 0:00:13.6]} 64... Kb8 {[%clk 0:01:07.7]} 65.
Kf7 {[%clk 0:00:14.5]} 65... Kc8 {[%clk 0:01:08.6]} 66. Kf8 {[%clk 0:00:15.4]}
66... Kb8 {[%clk 0:01:09.5]} 67. Ke8 {[%clk 0:00:16.3]} 67... Kc8 {[%clk
0:01:10.4]} 68. h7 {[%clk 0:00:17.1]} 68... Kb8 {[%clk 0:01:11.3]} 69. h8=N
{[%clk 0:00:15.1]} 69... Kc8 {[%clk 0:01:12.2]} 70. g5 {[%clk 0:00:15.7]} 70...
Kb8 {[%clk 0:01:13.1]} 71. g6 {[%clk 0:00:16.5]} 71... Kc8 {[%clk 0:01:14]} 72.
f5 {[%clk 0:00:17.3]} 72... Kb8 {[%clk 0:01:14.9]} 73. f6 {[%clk 0:00:18.2]}
73... Kc8 {[%clk 0:01:15.8]} 74. g7 {[%clk 0:00:19.1]} 74... Kb8 {[%clk
0:01:16.7]} 1-0

[Event "Early-Titled-Tuesday-Blitz-April-02-2024"]
[Site "Chess.com"]
[Date "2024.04.02"]
[Round "2"]
[White "ansko1999"]
[Black "inagreV"]
[Result "0-1"]
[WhiteElo "2635"]
[BlackElo "2389"]
[TimeControl "180+1"]
[EndTime "8:17:42 PDT"]
[Termination "inagreV won by checkmate"]

1. Nc3 {[%clk 0:03:00.9]} 1... Nf6 {[%clk 0:02:59.3]} 2. d4 {[%clk 0:03:00.5]}
2... d5 {[%clk 0:02:59.3]} 3. Bf4 {[%clk 0:02:59.9]} 3... c5 {[%clk 0:02:58.9]}
4. e4 {[%clk 0:02:57.9]} 4... Nxe4 {[%clk 0:02:58.2]} 5. Nxe4 {[%clk 0:02:54.6]}
5... dxe4 {[%clk 0:02:59.1]} 6. dxc5 {[%clk 0:02:54.7]} 6... Qa5+ {[%clk
0:02:59.5]} 7. c3 {[%clk 0:02:54.8]} 7... Qxc5 {[%clk 0:03:00.4]} 8. Qa4+ {[%clk
0:02:52.7]} 8... Nc6 {[%clk 0:03:01.1]} 9. Qxe4 {[%clk 0:02:53.1]} 9... g6
{[%clk 0:03:01.8]} 10. Nf3 {[%clk 0:02:39.4]} 10... Bg7 {[%clk 0:03:02]} 11. Qe3
{[%clk 0:02:39.4]} 11... Qxe3+ {[%clk 0:02:57.8]} 12. Bxe3 {[%clk 0:02:40.3]}
12... Be6 {[%clk 0:02:49.4]} 13. Bb5 {[%clk 0:02:36.8]} 13... Rc8 {[%clk
0:02:45.9]} 14. Bxa7 {[%clk 0:02:32.4]} 14... O-O {[%clk 0:02:45.9]} 15. Be3
{[%clk 0:02:30.3]} 15... Na5 {[%clk 0:02:35.6]} 16. Nd2 {[%clk 0:02:17.8]} 16...
Rfd8 {[%clk 0:02:29.9]} 17. O-O {[%clk 0:02:12.5]} 17... Rd5 {[%clk 0:02:29.5]}
18. Be2 {[%clk 0:02:02.2]} 18... Rcd8 {[%clk 0:02:22.5]} 19. Nc4 {[%clk
0:01:55.6]} 19... Nc6 {[%clk 0:02:17]} 20. Nb6 {[%clk 0:01:53.2]} 20... R5d6
{[%clk 0:02:12.4]} 21. a4 {[%clk 0:01:37.3]} 21... Bb3 {[%clk 0:02:09.5]} 22. a5
{[%clk 0:01:34.1]} 22... Ne5 {[%clk 0:02:01]} 23. Ra3 {[%clk 0:01:28.2]} 23...
Be6 {[%clk 0:01:56.1]} 24. h3 {[%clk 0:01:28.2]} 24... h6 {[%clk 0:01:53.2]} 25.
Na4 {[%clk 0:01:23]} 25... Nc4 {[%clk 0:01:48.7]} 26. Bxc4 {[%clk 0:01:21.1]}
26... Bxc4 {[%clk 0:01:49.6]} 27. Re1 {[%clk 0:01:18]} 27... Rd1 {[%clk
0:01:38.2]} 28. Ra1 {[%clk 0:01:18.3]} 28... Rxa1 {[%clk 0:01:27.3]} 29. Rxa1
{[%clk 0:01:18.2]} 29... e5 {[%clk 0:01:19.5]} 30. Bb6 {[%clk 0:01:09.8]} 30...
Rd2 {[%clk 0:01:18.5]} 31. Be3 {[%clk 0:01:06.4]} 31... Re2 {[%clk 0:01:15.9]}
32. b4 {[%clk 0:01:01.9]} 32... f5 {[%clk 0:01:14.8]} 33. Nb6 {[%clk 0:01:00.1]}
33... Bd3 {[%clk 0:01:10.5]} 34. c4 {[%clk 0:00:53.7]} 34... f4 {[%clk
0:01:07.6]} 35. Bc5 {[%clk 0:00:52.7]} 35... e4 {[%clk 0:01:04.7]} 36. Rc1
{[%clk 0:00:46.6]} 36... Bb2 {[%clk 0:01:01.7]} 37. Rd1 {[%clk 0:00:46.6]} 37...
Bc3 {[%clk 0:00:55.3]} 38. Nd5 {[%clk 0:00:45.5]} 38... Bd2 {[%clk 0:00:52]} 39.
Bd6 {[%clk 0:00:40.9]} 39... g5 {[%clk 0:00:51.4]} 40. c5 {[%clk 0:00:35.3]}
40... Bc4 {[%clk 0:00:44]} 41. Nb6 {[%clk 0:00:30.4]} 41... Bb5 {[%clk
0:00:39.9]} 42. Be5 {[%clk 0:00:27.7]} 42... Bc6 {[%clk 0:00:36.3]} 43. Nc4
{[%clk 0:00:24.6]} 43... Bxb4 {[%clk 0:00:34.5]} 44. Kf1 {[%clk 0:00:16.7]}
44... Rc2 {[%clk 0:00:30.9]} 45. Rd8+ {[%clk 0:00:16.6]} 45... Kf7 {[%clk
0:00:28.8]} 46. Nd6+ {[%clk 0:00:16.4]} 46... Ke6 {[%clk 0:00:29.5]} 47. Bg7
{[%clk 0:00:13.9]} 47... Rc1+ {[%clk 0:00:24.9]} 48. Ke2 {[%clk 0:00:13.8]}
48... Re1# {[%clk 0:00:25.6]} 0-1

[Event "Early-Titled-Tuesday-Blitz-April-02-2024"]
[Site "Chess.com"]
[Date "2024.04.02"]
[Round "2"]
[White "Zorbos"]
[Black "VeraVujovic"]
[Result "0-1"]
[WhiteElo "2481"]
[BlackElo "2219"]
[TimeControl "180+1"]
[EndTime "8:17:43 PDT"]
[Termination "VeraVujovic won by checkmate"]

1. e4 {[%clk 0:03:00.9]} 1... c5 {[%clk 0:02:59.2]} 2. Nf3 {[%clk 0:03:00.2]}
2... d6 {[%clk 0:02:59.7]} 3. d4 {[%clk 0:03:00.7]} 3... cxd4 {[%clk 0:02:59.6]}
4. Nxd4 {[%clk 0:03:01.6]} 4... Nf6 {[%clk 0:02:47.7]} 5. Nc3 {[%clk 0:03:01.3]}
5... Nc6 {[%clk 0:02:42.3]} 6. Bg5 {[%clk 0:03:00.7]} 6... e5 {[%clk 0:02:32.2]}
7. Ndb5 {[%clk 0:02:50.7]} 7... a6 {[%clk 0:02:32.2]} 8. Na3 {[%clk 0:02:50.4]}
8... b5 {[%clk 0:02:31.8]} 9. Nd5 {[%clk 0:02:50.3]} 9... Be7 {[%clk 0:02:30.6]}
10. Bxf6 {[%clk 0:02:50.6]} 10... Bxf6 {[%clk 0:02:28.3]} 11. c3 {[%clk
0:02:51.5]} 11... Rb8 {[%clk 0:02:23.9]} 12. Nc2 {[%clk 0:02:51.7]} 12... Bg5
{[%clk 0:02:20.6]} 13. Nce3 {[%clk 0:02:38.5]} 13... O-O {[%clk 0:02:16.3]} 14.
g3 {[%clk 0:02:31.8]} 14... b4 {[%clk 0:02:12.5]} 15. Bg2 {[%clk 0:02:31.2]}
15... bxc3 {[%clk 0:02:11.3]} 16. bxc3 {[%clk 0:02:31]} 16... Be6 {[%clk
0:02:07.3]} 17. O-O {[%clk 0:02:31.1]} 17... Bxd5 {[%clk 0:01:48.6]} 18. Nxd5
{[%clk 0:02:27.3]} 18... Ne7 {[%clk 0:01:48.4]} 19. Qd3 {[%clk 0:02:17.6]} 19...
Nxd5 {[%clk 0:01:47.8]} 20. Qxd5 {[%clk 0:02:12.6]} 20... Qc7 {[%clk 0:01:47.5]}
21. f4 {[%clk 0:02:01.3]} 21... exf4 {[%clk 0:01:44.3]} 22. gxf4 {[%clk
0:02:01.4]} 22... Bf6 {[%clk 0:01:40.4]} 23. Rac1 {[%clk 0:01:59.7]} 23... Bxc3
{[%clk 0:01:34.9]} 24. Rfd1 {[%clk 0:01:48.8]} 24... Qb6+ {[%clk 0:01:33.1]} 25.
Kh1 {[%clk 0:01:48.7]} 25... Bb4 {[%clk 0:01:33.1]} 26. Rb1 {[%clk 0:01:42.6]}
26... Qc5 {[%clk 0:01:27.4]} 27. Qd3 {[%clk 0:01:41.3]} 27... a5 {[%clk
0:01:19.4]} 28. Rdc1 {[%clk 0:01:41.2]} 28... Qf2 {[%clk 0:01:17.4]} 29. Rc2
{[%clk 0:01:40.1]} 29... Qxf4 {[%clk 0:01:16.9]} 30. Rf1 {[%clk 0:01:39.5]}
30... Qe5 {[%clk 0:01:16.1]} 31. Qc4 {[%clk 0:01:31]} 31... Qe6 {[%clk
0:01:07.5]} 32. Qd3 {[%clk 0:01:29]} 32... Bc5 {[%clk 0:00:48.1]} 33. Bh3 {[%clk
0:01:25.3]} 33... Qe5 {[%clk 0:00:47.4]} 34. Rg2 {[%clk 0:01:20.2]} 34... g6
{[%clk 0:00:43.2]} 35. Bd7 {[%clk 0:01:03]} 35... Rb2 {[%clk 0:00:37]} 36. Rxb2
{[%clk 0:00:35.5]} 36... Qxb2 {[%clk 0:00:37.9]} 37. Bc6 {[%clk 0:00:36.1]}
37... Qd4 {[%clk 0:00:30]} 38. Qf3 {[%clk 0:00:34.3]} 38... Kg7 {[%clk
0:00:24.5]} 39. Bd5 {[%clk 0:00:34.3]} 39... f6 {[%clk 0:00:16.4]} 40. Rd1
{[%clk 0:00:33.8]} 40... Qe3 {[%clk 0:00:14.5]} 41. Qg4 {[%clk 0:00:31.5]} 41...
Rd8 {[%clk 0:00:12.9]} 42. Rb1 {[%clk 0:00:30.8]} 42... Kh8 {[%clk 0:00:10.6]}
43. Qe6 {[%clk 0:00:26.4]} 43... Qf3# {[%clk 0:00:10.5]} 0-1

[Event "Early-Titled-Tuesday-Blitz-April-02-2024"]
[Site "Chess.com"]
[Date "2024.04.02"]
[Round "2"]
[White "gorgeous1083"]
[Black "themind1hunter"]
[Result "0-1"]
[WhiteElo "2198"]
[BlackElo "2495"]
[TimeControl "180+1"]
[EndTime "8:17:46 PDT"]
[Termination "themind1hunter won by checkmate"]

1. d4 {[%clk 0:03:00.9]} 1... Nf6 {[%clk 0:02:55.5]} 2. c4 {[%clk 0:03:01.1]}
2... e6 {[%clk 0:02:55.7]} 3. Nf3 {[%clk 0:03:01.5]} 3... Bb4+ {[%clk
0:02:43.2]} 4. Bd2 {[%clk 0:02:58.7]} 4... Be7 {[%clk 0:02:39.5]} 5. Nc3 {[%clk
0:02:58.1]} 5... d5 {[%clk 0:02:37.5]} 6. e3 {[%clk 0:02:55.7]} 6... O-O {[%clk
0:02:36.7]} 7. Bd3 {[%clk 0:02:55.8]} 7... a6 {[%clk 0:02:23.1]} 8. O-O {[%clk
0:02:50.8]} 8... dxc4 {[%clk 0:02:22.6]} 9. Bxc4 {[%clk 0:02:51.1]} 9... b5
{[%clk 0:02:23.3]} 10. Bd3 {[%clk 0:02:51.8]} 10... c5 {[%clk 0:02:22.8]} 11.
Ne4 {[%clk 0:02:43.1]} 11... Nbd7 {[%clk 0:02:03]} 12. Nxf6+ {[%clk 0:02:20.7]}
12... Nxf6 {[%clk 0:02:00.7]} 13. Bc2 {[%clk 0:02:10.5]} 13... Bb7 {[%clk
0:01:55]} 14. dxc5 {[%clk 0:02:08.8]} 14... Bxf3 {[%clk 0:01:50]} 15. gxf3
{[%clk 0:02:03.7]} 15... Bxc5 {[%clk 0:01:49.9]} 16. Bc3 {[%clk 0:02:03.1]}
16... Nd5 {[%clk 0:01:40.8]} 17. Qd3 {[%clk 0:01:57.4]} 17... Qg5+ {[%clk
0:01:30.3]} 18. Kh1 {[%clk 0:01:54.1]} 18... Qh5 {[%clk 0:01:30.9]} 19. Bd1
{[%clk 0:01:31.1]} 19... Rad8 {[%clk 0:01:11.4]} 20. f4 {[%clk 0:01:24.2]} 20...
Nxf4 {[%clk 0:00:44]} 21. Bxh5 {[%clk 0:01:19.2]} 21... Nxd3 {[%clk 0:00:43.6]}
22. Be2 {[%clk 0:01:08.8]} 22... b4 {[%clk 0:00:38]} 23. Bxg7 {[%clk 0:00:52.6]}
23... Kxg7 {[%clk 0:00:36.9]} 24. Rad1 {[%clk 0:00:35.4]} 24... Nxb2 {[%clk
0:00:32.5]} 25. Rb1 {[%clk 0:00:28.7]} 25... Na4 {[%clk 0:00:31.7]} 26. Rg1+
{[%clk 0:00:26.7]} 26... Kf6 {[%clk 0:00:31.4]} 27. Bxa6 {[%clk 0:00:25.7]}
27... Nc3 {[%clk 0:00:30.3]} 28. Rbc1 {[%clk 0:00:22.8]} 28... Rd2 {[%clk
0:00:28.6]} 29. Bc4 {[%clk 0:00:17.7]} 29... Rxf2 {[%clk 0:00:26.3]} 30. Rg3
{[%clk 0:00:17.1]} 30... Rd8 {[%clk 0:00:23.5]} 31. Kg1 {[%clk 0:00:16.8]} 31...
Rdd2 {[%clk 0:00:23.1]} 32. a3 {[%clk 0:00:12.8]} 32... Ne4 {[%clk 0:00:13.3]}
33. Rg4 {[%clk 0:00:10.3]} 33... Bxe3 {[%clk 0:00:09.7]} 34. axb4 {[%clk
0:00:09.1]} 34... Rg2+ {[%clk 0:00:09.2]} 35. Kf1 {[%clk 0:00:07.1]} 35... Rxg4
{[%clk 0:00:08.1]} 36. Be2 {[%clk 0:00:05]} 36... Rg1# {[%clk 0:00:09]} 0-1

[Event "Early-Titled-Tuesday-Blitz-April-02-2024"]
[Site "Chess.com"]
[Date "2024.04.02"]
[Round "2"]
[White "Witik"]
[Black "AccioChess"]
[Result "1-0"]
[WhiteElo "2773"]
[BlackElo "2468"]
[TimeControl "180+1"]
[EndTime "8:17:48 PDT"]
[Termination "Witik won on time"]

1. e4 {[%clk 0:02:59.9]} 1... e5 {[%clk 0:02:50.7]} 2. Nf3 {[%clk 0:02:59.6]}
2... Nc6 {[%clk 0:02:50.6]} 3. Nc3 {[%clk 0:03:00.1]} 3... g6 {[%clk 0:02:48.1]}
4. d4 {[%clk 0:02:58.5]} 4... exd4 {[%clk 0:02:47.9]} 5. Nd5 {[%clk 0:02:57.3]}
5... Bg7 {[%clk 0:02:47.6]} 6. Bg5 {[%clk 0:02:55.1]} 6... Nce7 {[%clk 0:02:39]}
7. Bc4 {[%clk 0:02:41.9]} 7... c6 {[%clk 0:02:34.5]} 8. Nf4 {[%clk 0:02:38.5]}
8... Nf6 {[%clk 0:02:05.8]} 9. e5 {[%clk 0:02:27]} 9... Ne4 {[%clk 0:02:02.5]}
10. O-O {[%clk 0:02:09.2]} 10... Nxg5 {[%clk 0:01:43.2]} 11. Nxg5 {[%clk
0:02:08.9]} 11... O-O {[%clk 0:01:43.2]} 12. Qf3 {[%clk 0:01:59.7]} 12... d5
{[%clk 0:01:25.7]} 13. exd6 {[%clk 0:01:58.6]} 13... Qxd6 {[%clk 0:01:25.6]} 14.
Rfe1 {[%clk 0:01:48.1]} 14... Qf6 {[%clk 0:00:53.5]} 15. Ne4 {[%clk 0:01:24.3]}
15... Qe5 {[%clk 0:00:35.9]} 16. Nd3 {[%clk 0:01:08.1]} 16... Qf5 {[%clk
0:00:35.7]} 17. Qg3 {[%clk 0:01:05.7]} 17... Nd5 {[%clk 0:00:34.5]} 18. Nd6
{[%clk 0:01:00.2]} 18... Qf6 {[%clk 0:00:29.2]} 19. Bxd5 {[%clk 0:00:41.4]}
19... cxd5 {[%clk 0:00:30.1]} 20. Ne8 {[%clk 0:00:40.2]} 20... Qf5 {[%clk
0:00:24.7]} 21. Nc7 {[%clk 0:00:27.9]} 21... Be6 {[%clk 0:00:10.9]} 22. Nxa8
{[%clk 0:00:27.6]} 22... Rxa8 {[%clk 0:00:11.8]} 23. h3 {[%clk 0:00:25]} 23...
Rc8 {[%clk 0:00:11.6]} 24. Re2 {[%clk 0:00:23]} 24... Bf8 {[%clk 0:00:07.6]} 25.
Rae1 {[%clk 0:00:23.7]} 25... h5 {[%clk 0:00:04.5]} 26. a3 {[%clk 0:00:23.3]}
26... Bg7 {[%clk 0:00:03.7]} 27. Nf4 {[%clk 0:00:21.6]} 27... Bd7 {[%clk
0:00:03.3]} 28. Re7 {[%clk 0:00:21.3]} 28... Rxc2 {[%clk 0:00:03.1]} 29. Qf3
{[%clk 0:00:10.2]} 29... d3 {[%clk 0:00:02.8]} 30. Nxd3 {[%clk 0:00:04.7]} 30...
Qxf3 {[%clk 0:00:02.9]} 31. gxf3 {[%clk 0:00:05.6]} 31... Bxh3 {[%clk 0:00:03]}
32. Rxb7 {[%clk 0:00:05.9]} 32... Bf5 {[%clk 0:00:02]} 33. Re8+ {[%clk
0:00:05.8]} 33... Kh7 {[%clk 0:00:01.5]} 34. Rxf7 {[%clk 0:00:06.4]} 34... Kh6
{[%clk 0:00:01.4]} 35. Ne5 {[%clk 0:00:05.5]} 1-0

[Event "Early-Titled-Tuesday-Blitz-April-02-2024"]
[Site "Chess.com"]
[Date "2024.04.02"]
[Round "2"]
[White "Susal_De_Silva"]
[Black "SharathRk6"]
[Result "0-1"]
[WhiteElo "2716"]
[BlackElo "2404"]
[TimeControl "180+1"]
[EndTime "8:17:49 PDT"]
[Termination "SharathRk6 won by resignation"]

1. Nf3 {[%clk 0:03:00.8]} 1... Nf6 {[%clk 0:02:59.6]} 2. e3 {[%clk 0:02:59.2]}
2... e6 {[%clk 0:02:59.7]} 3. c4 {[%clk 0:02:58.9]} 3... d5 {[%clk 0:02:59.8]}
4. Nc3 {[%clk 0:02:58.8]} 4... Be7 {[%clk 0:02:59.4]} 5. b3 {[%clk 0:02:59.1]}
5... O-O {[%clk 0:02:59.7]} 6. Bb2 {[%clk 0:02:59.4]} 6... b6 {[%clk 0:03:00.4]}
7. g3 {[%clk 0:02:56.4]} 7... Bb7 {[%clk 0:03:00.3]} 8. Bg2 {[%clk 0:02:56.8]}
8... Nbd7 {[%clk 0:03:00.4]} 9. O-O {[%clk 0:02:56.6]} 9... c5 {[%clk
0:03:00.9]} 10. cxd5 {[%clk 0:02:56.8]} 10... exd5 {[%clk 0:02:59.8]} 11. d4
{[%clk 0:02:56.1]} 11... Rc8 {[%clk 0:02:59.8]} 12. dxc5 {[%clk 0:02:55.4]}
12... Nxc5 {[%clk 0:02:59.3]} 13. Rc1 {[%clk 0:02:55.4]} 13... Nce4 {[%clk
0:02:57.1]} 14. Nd4 {[%clk 0:02:51]} 14... Qd7 {[%clk 0:02:49.8]} 15. Qe2 {[%clk
0:02:31.5]} 15... Nxc3 {[%clk 0:02:46.7]} 16. Rxc3 {[%clk 0:02:29.7]} 16... Ne4
{[%clk 0:02:42.2]} 17. Rcc1 {[%clk 0:02:26.9]} 17... a5 {[%clk 0:02:34]} 18.
Rfd1 {[%clk 0:02:21.5]} 18... Rxc1 {[%clk 0:02:25.9]} 19. Rxc1 {[%clk
0:02:20.5]} 19... Rc8 {[%clk 0:02:25]} 20. Qd1 {[%clk 0:02:14.3]} 20... Rxc1
{[%clk 0:02:20.4]} 21. Qxc1 {[%clk 0:02:15.2]} 21... Nc5 {[%clk 0:02:20.4]} 22.
Qc2 {[%clk 0:02:07.2]} 22... Bf6 {[%clk 0:02:06.9]} 23. h3 {[%clk 0:01:58.7]}
23... g6 {[%clk 0:01:53.7]} 24. g4 {[%clk 0:01:57.9]} 24... Ba6 {[%clk
0:01:29.6]} 25. Bf3 {[%clk 0:01:32.7]} 25... Bd3 {[%clk 0:01:28.2]} 26. Qd2
{[%clk 0:01:27.4]} 26... Ba6 {[%clk 0:01:14.6]} 27. Nf5 {[%clk 0:01:16.8]} 27...
Bxb2 {[%clk 0:01:03.9]} 28. Nh6+ {[%clk 0:01:16.7]} 28... Kg7 {[%clk 0:00:22.2]}
29. Qxb2+ {[%clk 0:01:14.8]} 29... Kxh6 {[%clk 0:00:20.5]} 30. h4 {[%clk
0:00:49.4]} 30... Ne4 {[%clk 0:00:14.1]} 31. Qe5 {[%clk 0:00:19.2]} 31... f6
{[%clk 0:00:10.9]} 32. Qb8 {[%clk 0:00:19.5]} 32... Qc8 {[%clk 0:00:10.1]} 33.
Qxb6 {[%clk 0:00:18.3]} 33... Bb7 {[%clk 0:00:07.5]} 34. Qxa5 {[%clk 0:00:12.3]}
34... Qc1+ {[%clk 0:00:07.8]} 35. Kg2 {[%clk 0:00:12.5]} 35... Qd2 {[%clk
0:00:08.3]} 36. Bxe4 {[%clk 0:00:12.3]} 36... Qxa5 {[%clk 0:00:08.1]} 0-1